bitfinex/quotes_BTCUSD_20250127
["timestamp","ask_amount","ask_price","bid_price","bid_amount"]
[1738019823209,0.57060487,102090.0,102080.0,0.64462119]
[1738019823862,0.36373758,102090.0,102080.0,0.64462119]
[1738019824058,0.36373758,102090.0,102080.0,1.05904422]
[1738019824294,0.36373758,102090.0,102080.0,0.94828238]
[1738019825349,0.46108487,102090.0,102080.0,0.82498238]
[1738019825563,0.47064487,102090.0,102080.0,0.64462119]
[1738019825770,0.51770936,102090.0,102080.0,0.64462119]
[1738019826784,0.50814936,102090.0,102080.0,0.64462119]
[1738019826938,0.51766936,102090.0,102080.0,0.64462119]
[1738019829267,0.41766936,102090.0,102080.0,0.49767819]
[1738019829490,0.96869836,102090.0,102080.0,0.49767819]
[1738019830579,0.63979836,102090.0,102080.0,0.49767819]
[1738019830790,0.63979836,102090.0,102080.0,0.49139944]
[1738019831069,0.88029336,102090.0,102080.0,0.49785083]
[1738019831289,0.85209236,102090.0,102080.0,0.49685083]
[1738019831482,0.85309236,102090.0,102080.0,0.49685083]
[1738019831717,0.77030027,102090.0,102080.0,0.49685083]
[1738019831926,0.76930027,102090.0,102080.0,0.49685083]
[1738019832572,0.99130027,102090.0,102080.0,0.49685083]
[1738019832779,1.31130027,102090.0,102080.0,0.49685083]
[1738019832990,1.32718402,102090.0,102080.0,0.49685083]
[1738019833195,1.32718402,102090.0,102080.0,0.49039944]
[1738019833413,1.32818402,102090.0,102080.0,0.49685083]
[1738019833629,1.32718402,102090.0,102080.0,0.49685083]
[1738019833831,1.31181811,102090.0,102080.0,0.49685083]
[1738019834064,1.31281811,102090.0,102080.0,0.49685083]
[1738019834284,1.31181811,102090.0,102080.0,0.49685083]
[1738019834498,1.31281811,102090.0,102080.0,0.49685083]
[1738019834704,1.27693436,102090.0,102080.0,0.49685083]
[1738019834968,1.27693436,102090.0,102080.0,0.45267657]
[1738019835430,1.27693436,102090.0,102080.0,0.44861628]
[1738019835638,1.29693436,102090.0,102080.0,0.44861628]
[1738019835844,1.30693436,102090.0,102080.0,0.44861628]
[1738019836050,1.27693436,102090.0,102080.0,0.44861628]
[1738019836281,1.29693436,102090.0,102080.0,0.44861628]
[1738019837307,0.98741436,102090.0,102080.0,0.44861628]
[1738019837534,0.99641304,102090.0,102080.0,0.44861628]
[1738019837714,1.01641304,102090.0,102080.0,0.44861628]
[1738019839051,1.10475158,102090.0,102080.0,0.44861628]
[1738019840686,1.10475158,102090.0,102080.0,0.44216489]
[1738019841049,1.10475158,102090.0,102080.0,0.44861628]
[1738019841549,1.09535158,102090.0,102080.0,0.44861628]
[1738019841770,1.10475158,102090.0,102080.0,0.44861628]
[1738019842171,0.90055109,102090.0,102080.0,0.44861628]
[1738019842381,0.69215109,102090.0,102080.0,0.44861628]
[1738019842597,0.62635109,102090.0,102080.0,0.44861628]
[1738019843030,0.77635109,102090.0,102080.0,0.44861628]
[1738019843906,0.77635109,102090.0,102080.0,0.44875798]
[1738019844111,0.87369838,102090.0,102080.0,0.44875798]
[1738019845629,0.78535984,102090.0,102080.0,0.44875798]
[1738019846155,0.52148487,102090.0,102080.0,0.44875798]
[1738019846368,0.47148487,102090.0,102080.0,0.59570098]
[1738019847443,0.80038487,102090.0,102080.0,0.59570098]
[1738019847719,0.79938487,102090.0,102080.0,0.59570098]
[1738019848146,0.79938487,102090.0,102080.0,0.67090098]
[1738019848549,0.89938487,102090.0,102080.0,0.67090098]
[1738019848872,0.88998487,102090.0,102080.0,0.67090098]
[1738019849080,0.89938487,102090.0,102080.0,0.67090098]
[1738019849641,0.92031393,102090.0,102080.0,0.67090098]
[1738019851065,0.86724293,102090.0,102080.0,0.44875798]
[1738019851465,1.01724293,102090.0,102080.0,0.44875798]
[1738019851666,1.01724293,102090.0,102080.0,0.4520443]
[1738019851940,1.00784293,102090.0,102080.0,0.4520443]
[1738019852122,1.01724293,102090.0,102080.0,0.44960987]
[1738019854385,1.03260889,102090.0,102080.0,0.44960987]
[1738019855243,1.01724293,102090.0,102080.0,0.44960987]
[1738019856875,1.03260874,102090.0,102080.0,0.44960987]
[1738019857284,1.01724293,102090.0,102080.0,0.44960987]
[1738019859475,1.02727956,102090.0,102080.0,0.44960987]
[1738019863308,1.01787956,102090.0,102080.0,0.44960987]
[1738019863493,1.02727956,102090.0,102080.0,0.44960987]
[1738019864074,1.04264578,102090.0,102080.0,0.44960987]
[1738019864480,1.02727956,102090.0,102080.0,0.44960987]
[1738019866014,1.04264573,102090.0,102080.0,0.44960987]
[1738019867601,1.02727956,102090.0,102080.0,0.44960987]
[1738019872858,1.05027956,102090.0,102080.0,0.44960987]
[1738019873069,1.57431556,102090.0,102080.0,0.44960987]
[1738019873285,1.57431556,102090.0,102080.0,0.39814061]
[1738019873512,1.62931002,102090.0,102080.0,0.40443388]
[1738019873729,1.65519702,102090.0,102080.0,0.40443388]
[1738019875007,1.67519702,102090.0,102080.0,0.40443388]
[1738019875498,1.7085411,102090.0,102080.0,0.40443388]
[1738019875701,1.72390812,102090.0,102080.0,0.40443388]
[1738019876331,2.85620012,102090.0,102080.0,0.40443388]
[1738019876986,2.79114612,102090.0,102080.0,0.39814061]
[1738019877195,2.46224612,102090.0,102080.0,0.39814061]
[1738019877414,2.46224612,102090.0,102080.0,0.40443388]
[1738019878766,2.37390758,102090.0,102080.0,0.40443388]
[1738019879379,2.29559158,102090.0,102080.0,0.40443388]
[1738019879587,2.10090256,102090.0,102080.0,0.40443388]
[1738019880462,2.09090256,102090.0,102080.0,0.30647388]
[1738019880672,2.09090256,102090.0,102080.0,0.26848718]
[1738019880882,2.09090256,102090.0,102080.0,0.26219391]
[1738019881074,2.14600745,102090.0,102080.0,0.26219391]
[1738019881475,2.13600745,102090.0,102080.0,0.0958129]
[1738019881682,2.13600745,102090.0,102050.0,0.00029715]
[1738019881683,0.503,102080.0,102050.0,0.00029715]
[1738019881886,0.56281929,102060.0,102050.0,0.00078852]
[1738019882093,1.17215225,102060.0,102050.0,0.00078852]
[1738019882309,1.17215225,102060.0,102050.0,0.49071852]
[1738019883882,1.1875234,102060.0,102050.0,0.49071852]
[1738019884283,1.7587084,102060.0,102050.0,0.49071852]
[1738019884499,1.85605569,102060.0,102050.0,0.49071852]
[1738019885315,1.87605569,102060.0,102050.0,0.49071852]
[1738019885689,1.95805569,102060.0,102050.0,0.49071852]
[1738019886690,1.38687069,102060.0,102050.0,0.49071852]
[1738019887013,2.21772269,102060.0,102050.0,0.49071852]
[1738019887512,2.22758303,102060.0,102050.0,0.49071852]
[1738019887724,2.21221188,102060.0,102050.0,0.49071852]
[1738019888906,2.21221188,102060.0,102050.0,0.49707434]
[1738019889118,2.23195245,102060.0,102050.0,0.49707434]
[1738019891776,2.23195245,102060.0,102050.0,0.49071852]
[1738019892017,2.23195245,102060.0,102050.0,0.49657434]
[1738019892850,2.20895245,102060.0,102050.0,0.49657434]
[1738019893068,1.48149716,102060.0,102050.0,0.49657434]
[1738019893303,1.45428716,102060.0,102050.0,0.49021852]
[1738019893542,1.55848716,102060.0,102050.0,0.49021852]
[1738019893773,1.56788716,102060.0,102050.0,0.49021852]
[1738019893997,1.66523445,102060.0,102050.0,0.49657434]
[1738019895805,1.66523445,102060.0,102050.0,0.49021852]
[1738019896007,1.66523445,102060.0,102050.0,0.49657434]
[1738019897592,1.69112145,102060.0,102050.0,0.49657434]
[1738019897792,1.69112145,102060.0,102050.0,0.49021852]
[1738019898158,1.69112145,102060.0,102050.0,0.48120434]
[1738019899950,1.69112145,102060.0,102050.0,0.47484852]
[1738019901320,1.69112145,102060.0,102050.0,0.48120434]
[1738019902577,1.69112145,102060.0,102050.0,0.48134594]
[1738019902706,1.69141881,102060.0,102050.0,0.48134594]
[1738019903115,1.69141881,102060.0,102050.0,0.47499012]
[1738019903536,1.74642677,102060.0,102050.0,0.48134594]
[1738019903959,2.78988177,102060.0,102050.0,0.48134594]
[1738019904138,2.78995177,102060.0,102050.0,0.47499012]
[1738019904756,2.73494381,102060.0,102050.0,0.47499012]
[1738019905555,2.75031621,102060.0,102050.0,0.47499012]
[1738019906764,2.74031621,102060.0,102050.0,0.37700012]
[1738019906989,2.74031621,102060.0,102050.0,0.29720355]
[1738019907379,2.72494381,102060.0,102050.0,0.23840955]
[1738019907623,2.82814381,102060.0,102050.0,0.08983002]
[1738019907852,2.86684381,102060.0,102050.0,0.00214076]
[1738019908148,0.908086,102050.0,102040.0,0.00029715]
[1738019908374,0.908086,102050.0,102040.0,1.5e-07]
[1738019908375,5.24945958,102050.0,102040.0,1.5e-07]
[1738019908554,1.20466758,102050.0,102040.0,0.43310329]
[1738019908766,6.11724758,102050.0,102040.0,0.39390329]
[1738019909132,6.11724758,102050.0,102040.0,0.37430329]
[1738019909330,6.08478558,102050.0,102040.0,0.37430329]
[1738019909532,5.67394658,102050.0,102040.0,0.37430329]
[1738019910435,2.02544358,102050.0,102040.0,0.37430329]
[1738019910627,1.99431822,102050.0,102040.0,0.37430329]
[1738019911042,1.98371822,102050.0,102040.0,0.24051724]
[1738019911263,2.00960522,102050.0,102040.0,0.02615504]
[1738019911483,1.91952258,102050.0,102040.0,0.02615504]
[1738019912370,1.91952258,102050.0,102040.0,4e-08]
[1738019912573,3.412044,102040.0,102030.0,4.001e-05]
[1738019912735,5.15507284,102040.0,102030.0,0.49007001]
[1738019912930,5.55985984,102040.0,102030.0,0.49007001]
[1738019913821,5.38593084,102040.0,102030.0,0.49007001]
[1738019914057,5.39593084,102040.0,102030.0,0.49007001]
[1738019914234,4.98593084,102040.0,102030.0,0.49007001]
[1738019914407,5.00130688,102040.0,102030.0,0.37749877]
[1738019914613,5.14762947,102040.0,102030.0,0.37749877]
[1738019914845,5.01130688,102040.0,102030.0,0.37749877]
[1738019915644,4.25976188,102040.0,102030.0,0.37749877]
[1738019915843,3.00425488,102040.0,102030.0,0.37749877]
[1738019916295,3.02725488,102040.0,102030.0,0.37749877]
[1738019916715,3.06314188,102040.0,102030.0,0.38746671]
[1738019916895,3.07286748,102040.0,102030.0,0.38746671]
[1738019917103,3.07286748,102040.0,102030.0,0.37749877]
[1738019917307,2.48531748,102040.0,102030.0,0.37749877]
[1738019917618,4.54251448,102040.0,102030.0,0.37465916]
[1738019918244,4.67677281,102040.0,102030.0,0.37465916]
[1738019918648,4.71606581,102040.0,102030.0,0.37465916]
[1738019919083,4.70068977,102040.0,102030.0,0.37465916]
[1738019919300,3.96472377,102040.0,102030.0,0.37465916]
[1738019919529,2.59850918,102040.0,102030.0,0.37465916]
[1738019919758,2.61496618,102040.0,102030.0,0.37465916]
[1738019919936,2.63796618,102040.0,102030.0,0.37465916]
[1738019920142,2.63796618,102040.0,102030.0,0.3846271]
[1738019921106,2.65800436,102040.0,102030.0,0.3846271]
[1738019921314,2.75535165,102040.0,102030.0,0.3846271]
[1738019921564,2.75535165,102040.0,102030.0,0.36796043]
[1738019922362,2.62109332,102040.0,102030.0,0.36796043]
[1738019923389,2.61342773,102040.0,102030.0,0.36796043]
[1738019923553,2.36804126,102040.0,102030.0,0.43719249]
[1738019923754,2.36804126,102040.0,102030.0,0.44716043]
[1738019927149,2.10868126,102040.0,102030.0,0.44716043]
[1738019927382,2.10266685,102040.0,102030.0,0.49596043]
[1738019927600,2.20001414,102040.0,102030.0,0.49610203]
[1738019928455,2.01061414,102040.0,102030.0,0.49610203]
[1738019928678,2.00125414,102040.0,102030.0,0.49610203]
[1738019928900,2.01061414,102040.0,102030.0,0.49610203]
[1738019929437,2.00125414,102040.0,102030.0,0.49610203]
[1738019929667,2.01061414,102040.0,102030.0,0.49610203]
[1738019930492,1.91061414,102040.0,102030.0,0.49610203]
[1738019930708,1.93361414,102040.0,102030.0,0.36810203]
[1738019930876,2.44804014,102040.0,102030.0,0.36810203]
[1738019931078,2.44804014,102040.0,102030.0,0.35813409]
[1738019931851,2.46341461,102040.0,102030.0,0.35813409]
[1738019932616,2.49341461,102040.0,102030.0,0.35813409]
[1738019932818,2.68154582,102040.0,102030.0,0.35813409]
[1738019933720,2.69357406,102040.0,102030.0,0.35813409]
[1738019934126,2.64850413,102040.0,102030.0,0.29675175]
[1738019935299,2.62647589,102040.0,102030.0,0.29675175]
[1738019936076,2.71481443,102040.0,102030.0,0.29675175]
[1738019937307,2.70481443,102040.0,102030.0,0.16422175]
[1738019938162,2.70481443,102040.0,102030.0,0.04648522]
[1738019938371,2.70481443,102040.0,102030.0,0.00728122]
[1738019938513,2.17501396,102040.0,102030.0,0.00728122]
[1738019938702,2.08667542,102040.0,102030.0,0.00728122]
[1738019938926,5.86949542,102040.0,102030.0,0.00728122]
[1738019939131,5.86949542,102040.0,102030.0,2.2e-07]
[1738019939354,2.08667542,102040.0,102030.0,0.47042822]
[1738019939560,2.10638433,102040.0,102030.0,0.41162222]
[1738019939764,2.10638433,102040.0,102030.0,0.41176382]
[1738019939964,2.10668169,102040.0,102030.0,0.37255982]
[1738019940201,2.10668169,102040.0,102030.0,0.31375382]
[1738019940818,6.56116069,102040.0,102030.0,0.19426219]
[1738019941025,6.56116069,102040.0,102030.0,0.17466019]
[1738019941233,6.56116069,102040.0,102030.0,0.13545619]
[1738019941443,6.56116069,102040.0,102030.0,0.09625219]
[1738019941654,6.26583969,102040.0,102030.0,0.09625219]
[1738019941865,5.84518369,102040.0,102030.0,0.09625219]
[1738019942076,4.34006341,102040.0,102030.0,0.09625219]
[1738019942287,3.95742741,102040.0,102030.0,0.09625219]
[1738019942498,3.94806741,102040.0,102030.0,0.09625219]
[1738019942706,4.09528898,102040.0,102030.0,0.09625219]
[1738019942903,3.60245602,102040.0,102030.0,0.09625219]
[1738019943521,3.61245602,102040.0,102030.0,0.09625219]
[1738019945202,3.29219602,102040.0,102030.0,0.17695219]
[1738019945409,1.12660173,102040.0,102030.0,0.17695219]
[1738019945614,1.54820273,102040.0,102030.0,0.18711296]
[1738019945824,1.57120273,102040.0,102030.0,0.17695219]
[1738019946031,1.42120273,102040.0,102030.0,0.17695219]
[1738019946230,1.61913382,102040.0,102030.0,0.17695219]
[1738019946437,1.57584111,102040.0,102030.0,0.18729119]
[1738019946652,1.59884111,102040.0,102030.0,0.18729119]
[1738019947275,1.74884111,102040.0,102030.0,0.18729119]
[1738019948083,1.64884111,102040.0,102030.0,0.18729119]
[1738019948298,1.64884111,102040.0,102030.0,0.10659119]
[1738019948511,1.64884111,102040.0,102030.0,0.09625219]
[1738019949488,1.66884111,102040.0,102030.0,0.09625219]
[1738019949728,1.64884111,102040.0,102030.0,0.09625219]
[1738019950044,3.62714611,102040.0,102030.0,0.09625219]
[1738019950159,0.297029,102020.0,102010.0,0.0001415]
[1738019950356,3.11287354,102020.0,102010.0,0.0001415]
[1738019950598,2.85062364,102020.0,102010.0,0.4902615]
[1738019950795,2.92662364,102020.0,102010.0,0.4902615]
[1738019951002,2.87062364,102020.0,102010.0,0.4902615]
[1738019951434,2.87111296,102020.0,102010.0,0.4902615]
[1738019952720,2.77376567,102020.0,102010.0,0.4902615]
[1738019956342,2.77376567,102020.0,102010.0,0.49017225]
[1738019956763,2.76312567,102020.0,102010.0,0.49017225]
[1738019957526,2.79233096,102020.0,102010.0,0.49017225]
[1738019959808,2.79233096,102020.0,102010.0,0.49017225]
[1738019960639,2.65843386,102020.0,102010.0,0.49017225]
[1738019960849,2.75578115,102020.0,102010.0,0.49017225]
[1738019962981,2.05432186,102020.0,102010.0,0.57087225]
[1738019963206,2.20432186,102020.0,102010.0,0.57087225]
[1738019963414,2.22732186,102020.0,102010.0,0.50058081]
[1738019964077,2.36548427,102020.0,102010.0,0.50058081]
[1738019964262,2.36578163,102020.0,102010.0,0.49017225]
[1738019964479,2.47850629,102020.0,102010.0,0.50058081]
[1738019967948,2.34404829,102020.0,102010.0,0.50058081]
[1738019968130,3.52708529,102020.0,102010.0,0.50058081]
[1738019968507,3.52708529,102020.0,102010.0,0.49017225]
[1738019968653,2.80068192,102020.0,102010.0,0.49017225]
[1738019969283,2.80068192,102020.0,102010.0,0.50058081]
[1738019970507,2.80068192,102020.0,102010.0,0.49017225]
[1738019970706,2.80068192,102020.0,102010.0,0.50058081]
[1738019971780,2.68033463,102020.0,102010.0,0.50058081]
[1738019971987,2.20832363,102020.0,102010.0,0.62528081]
[1738019972194,2.18867892,102020.0,102010.0,0.62528081]
[1738019973606,2.18867892,102020.0,102010.0,0.61487225]
[1738019973810,2.18867892,102020.0,102010.0,0.62528081]
[1738019974012,2.28602621,102020.0,102010.0,0.62528081]
[1738019975013,2.30140355,102020.0,102010.0,0.62528081]
[1738019976905,2.30140355,102020.0,102010.0,0.60861414]
[1738019977536,2.28602621,102020.0,102010.0,0.60875574]
[1738019980336,1.80857052,102020.0,102010.0,0.60875574]
[1738019981505,1.79319325,102020.0,102010.0,0.60875574]
[1738019982758,1.78648596,102020.0,102010.0,0.60875574]
[1738019983204,1.45644596,102020.0,102010.0,0.60875574]
[1738019983525,0.90468538,102020.0,102010.0,0.60875574]
[1738019984890,0.92006204,102020.0,102010.0,0.60875574]
[1738019985299,0.92006204,102020.0,102010.0,0.48405574]
[1738019985300,0.82006204,102020.0,102010.0,0.48405574]
[1738019985507,0.94040933,102020.0,102010.0,0.48405574]
[1738019987618,0.92503267,102020.0,102010.0,0.48405574]
[1738019994555,0.94041022,102020.0,102010.0,0.48405574]
[1738019998411,0.82006293,102020.0,102010.0,0.48405574]
[1738020001621,0.91070293,102020.0,102010.0,0.63109974]
[1738020001823,0.60765638,102020.0,102010.0,0.76169974]
[1738020002795,0.59829638,102020.0,102010.0,0.76169974]
[1738020002958,0.70500367,102020.0,102010.0,0.76169974]
[1738020003784,0.59829638,102020.0,102010.0,0.76169974]
[1738020003982,0.60761638,102020.0,102010.0,0.76169974]
[1738020004162,0.59829638,102020.0,102010.0,0.76169974]
[1738020004365,0.60761638,102020.0,102010.0,0.75129118]
[1738020004885,0.93651638,102020.0,102010.0,0.76223169]
[1738020005341,0.83651638,102020.0,102010.0,0.76223169]
[1738020005569,0.72984909,102020.0,102010.0,0.76223169]
[1738020005929,0.40094909,102020.0,102010.0,0.88299353]
[1738020006138,0.41632246,102020.0,102010.0,0.76223169]
[1738020007023,0.41632246,102020.0,102010.0,0.75700189]
[1738020007457,0.41632246,102020.0,102010.0,0.75900189]
[1738020008011,0.41632246,102020.0,102010.0,0.76000189]
[1738020009460,0.41632246,102020.0,102010.0,0.76984476]
[1738020010294,0.40094909,102020.0,102010.0,0.76984476]
[1738020010645,0.39594909,102020.0,102010.0,0.89019205]
[1738020010846,0.39594909,102020.0,102010.0,1.13795389]
[1738020011066,0.25044909,102020.0,102010.0,1.13795389]
[1738020011780,0.25044909,102020.0,102010.0,0.91984476]
[1738020012187,0.25044909,102020.0,102010.0,0.92784476]
[1738020012488,0.25144909,102020.0,102010.0,1.0396066]
[1738020012755,0.25144909,102020.0,102010.0,0.93084476]
[1738020013998,0.25144909,102020.0,102010.0,1.0416066]
[1738020015344,0.26682081,102020.0,102010.0,1.0416066]
[1738020016189,0.26682081,102020.0,102010.0,1.16195389]
[1738020016393,0.26682081,102020.0,102010.0,1.16480924]
[1738020016900,0.26682081,102020.0,102010.0,1.16195389]
[1738020018281,0.16880081,102020.0,102010.0,1.16195389]
[1738020018490,0.00178668,102020.0,102010.0,1.18195389]
[1738020018692,0.00029736,102040.0,102030.0,0.434715]
[1738020018913,0.00029736,102040.0,102030.0,1.16295767]
[1738020019093,0.00029736,102040.0,102030.0,1.30898089]
[1738020019094,3.6e-07,102040.0,102030.0,1.30898089]
[1738020019319,7.2e-07,102050.0,102040.0,0.477701]
[1738020019528,7.2e-07,102050.0,102040.0,1.19243013]
[1738020019730,0.02351008,102060.0,102050.0,0.457686]
[1738020019933,0.00029736,102070.0,102060.0,0.306972]
[1738020020068,0.33063758,102090.0,102080.0,0.274643]
[1738020020265,0.41313758,102090.0,102080.0,0.89183484]
[1738020020470,0.41313758,102090.0,102080.0,0.89666301]
[1738020020837,1.00331783,102090.0,102080.0,0.70250117]
[1738020021021,1.35024683,102090.0,102080.0,0.51225817]
[1738020021224,1.50024683,102090.0,102080.0,0.51230716]
[1738020021565,1.51056683,102090.0,102080.0,0.51230716]
[1738020021903,1.50956683,102090.0,102080.0,0.51230716]
[1738020022092,1.51056683,102090.0,102080.0,0.51230716]
[1738020022499,1.36363783,102090.0,102080.0,0.51230716]
[1738020022710,1.38000328,102090.0,102080.0,0.65925016]
[1738020022908,1.21968328,102090.0,102080.0,0.65925016]
[1738020023270,1.13000328,102090.0,102080.0,0.65925016]
[1738020023483,1.12900328,102090.0,102080.0,0.65925016]
[1738020023655,1.12800328,102090.0,102080.0,0.65925016]
[1738020023866,1.12900328,102090.0,102080.0,0.65925016]
[1738020024061,1.13000328,102090.0,102080.0,0.65925016]
[1738020025183,1.12500328,102090.0,102080.0,0.65925016]
[1738020025559,1.11568328,102090.0,102080.0,0.65925016]
[1738020025758,1.01568328,102090.0,102080.0,0.65925016]
[1738020025956,0.91833599,102090.0,102080.0,0.898012]
[1738020026157,0.59269841,102090.0,102080.0,0.908012]
[1738020026425,0.09986545,102090.0,102080.0,0.908012]
[1738020027907,0.0845,102090.0,102080.0,0.908012]
[1738020028110,0.0845,102090.0,102080.0,1.058012]
[1738020029467,0.0845,102090.0,102080.0,1.06791701]
[1738020029930,0.01092796,102090.0,102080.0,1.06791701]
[1738020030787,0.01092796,102090.0,102080.0,1.0871824]
[1738020031322,0.50376092,102090.0,102080.0,1.0871824]
[1738020032604,0.50276092,102090.0,102080.0,1.0871824]
[1738020033055,0.50376092,102090.0,102080.0,1.0951824]
[1738020033511,0.50276092,102090.0,102080.0,1.0951824]
[1738020033801,0.50276092,102090.0,102080.0,1.0981824]
[1738020034118,0.50276092,102090.0,102080.0,0.82742056]
[1738020034261,0.50276092,102090.0,102080.0,0.68015517]
[1738020034893,0.50276092,102090.0,102080.0,0.92391701]
[1738020035864,0.51812322,102090.0,102080.0,0.92391701]
[1738020036072,0.0163623,102090.0,102080.0,1.2142643]
[1738020036470,0.0163623,102090.0,102080.0,1.2144057]
[1738020036873,0.01665924,102090.0,102080.0,1.2144057]
[1738020038830,0.01665924,102090.0,102080.0,1.1944057]
[1738020039880,0.5094922,102090.0,102080.0,1.07405841]
[1738020040156,0.5094922,102090.0,102080.0,0.96329657]
[1738020040271,0.4941299,102090.0,102080.0,0.96329657]
[1738020040717,0.4941299,102090.0,102080.0,0.95329657]
[1738020041755,0.4941299,102090.0,102080.0,0.96329657]
[1738020041953,0.4941299,102090.0,102080.0,0.98321703]
[1738020042163,0.4941299,102090.0,102080.0,1.08397887]
[1738020042640,0.4941299,102090.0,102080.0,0.68029657]
[1738020043254,0.49403985,102090.0,102080.0,0.68029657]
[1738020043854,0.49403985,102090.0,102080.0,0.67039156]
[1738020044974,0.50940299,102090.0,102080.0,0.67039156]
[1738020048253,0.50940299,102090.0,102080.0,0.70063104]
[1738020049027,0.01536314,102090.0,102080.0,1.20544017]
[1738020049204,0.52657646,102110.0,102100.0,0.146914]
[1738020049205,0.33707646,102110.0,102100.0,0.146914]
[1738020049407,0.191,102110.0,102100.0,0.7156233]
[1738020049609,0.28834729,102110.0,102100.0,0.65772828]
[1738020051678,0.28834729,102110.0,102100.0,0.65872828]
[1738020051875,0.43524729,102110.0,102100.0,0.65872828]
[1738020052084,0.98678487,102110.0,102100.0,0.65872828]
[1738020052292,0.98678487,102110.0,102100.0,0.51181428]
[1738020052496,1.20690515,102110.0,102100.0,0.51181428]
[1738020053007,1.20690515,102110.0,102100.0,0.51081428]
[1738020053211,0.78326757,102110.0,102100.0,0.51081428]
[1738020053390,0.88326757,102110.0,102100.0,0.51081428]
[1738020053591,0.88226757,102110.0,102100.0,0.51081428]
[1738020053794,1.117132,102110.0,102100.0,0.51081428]
[1738020054002,1.118132,102110.0,102100.0,0.51081428]
[1738020054409,1.117132,102110.0,102100.0,0.51081428]
[1738020054612,1.14343176,102110.0,102100.0,0.51081428]
[1738020054825,1.14443176,102110.0,102100.0,0.51081428]
[1738020055021,1.14343176,102110.0,102100.0,0.50633]
[1738020055310,1.19944444,102110.0,102100.0,0.46216844]
[1738020055498,1.19944444,102110.0,102100.0,0.46665272]
[1738020055722,1.19944444,102110.0,102100.0,0.40083277]
[1738020055885,1.12932416,102110.0,102100.0,0.40083277]
[1738020056244,1.12832416,102110.0,102100.0,0.40531705]
[1738020056457,1.1383182,102110.0,102100.0,0.40531705]
[1738020056688,2.0197182,102110.0,102100.0,0.12478777]
[1738020056899,0.427129,102090.0,102080.0,0.00019039]
[1738020057108,0.195978,102060.0,102030.0,0.392113]
[1738020057327,0.195978,102060.0,102030.0,0.04919569]
[1738020057328,0.1455,102040.0,102030.0,0.04919569]
[1738020057532,0.89196125,102040.0,102030.0,0.53917569]
[1738020057758,0.74496025,102040.0,102030.0,0.63709069]
[1738020057962,0.74496025,102040.0,102030.0,0.49007569]
[1738020058159,0.74496025,102040.0,102030.0,0.63709069]
[1738020058667,0.74596025,102040.0,102030.0,0.64509069]
[1738020058852,0.74496025,102040.0,102030.0,0.63709069]
[1738020059065,0.74496025,102040.0,102030.0,0.79595253]
[1738020059066,0.63833296,102040.0,102030.0,0.79595253]
[1738020059214,0.63833296,102040.0,102030.0,0.80395253]
[1738020059577,0.63933296,102040.0,102030.0,0.80395253]
[1738020059710,0.63933296,102040.0,102030.0,0.80695253]
[1738020060124,0.63933296,102040.0,102030.0,0.69619069]
[1738020060343,0.73668025,102040.0,102030.0,0.69619069]
[1738020060548,0.88368125,102040.0,102030.0,0.50107569]
[1738020060934,0.88368125,102040.0,102030.0,0.64809069]
[1738020060935,0.73668025,102040.0,102030.0,0.64809069]
[1738020061146,0.98102854,102040.0,102030.0,0.50107569]
[1738020061478,1.13102854,102040.0,102030.0,0.50107569]
[1738020062071,1.04196125,102040.0,102030.0,0.49307569]
[1738020062276,1.14196125,102040.0,102030.0,0.49307569]
[1738020062497,0.73668025,102040.0,102030.0,0.64209069]
[1738020062721,0.63933296,102040.0,102030.0,0.64209069]
[1738020062944,0.63933296,102040.0,102030.0,0.69359069]
[1738020063558,0.63933296,102040.0,102030.0,0.80435253]
[1738020063760,0.63933296,102040.0,102030.0,0.88395253]
[1738020063972,0.63933296,102040.0,102030.0,0.77319069]
[1738020064182,0.73668025,102040.0,102030.0,0.77319069]
[1738020064564,0.63933296,102040.0,102030.0,0.77319069]
[1738020064768,0.65470406,102040.0,102030.0,0.77319069]
[1738020065242,0.65470406,102040.0,102030.0,0.88395253]
[1738020065897,0.65470406,102040.0,102030.0,0.77319069]
[1738020067107,0.49383296,102040.0,102030.0,1.04395253]
[1738020067287,0.001,102040.0,102030.0,1.04395253]
[1738020068286,0.53833296,102050.0,102040.0,0.147001]
[1738020068487,0.53833296,102050.0,102040.0,0.74874262]
[1738020068700,0.53833296,102050.0,102040.0,0.87716284]
[1738020069104,0.0455,102050.0,102040.0,1.15751013]
[1738020069468,0.1455,102070.0,102060.0,0.276372]
[1738020069669,0.1455,102070.0,102060.0,0.87704384]
[1738020069799,0.53833296,102080.0,102070.0,0.146957]
[1738020070000,0.53833296,102080.0,102070.0,0.63779654]
[1738020070371,0.53833296,102080.0,102070.0,0.636817]
[1738020070547,0.53833296,102080.0,102070.0,0.64399477]
[1738020070887,0.5476619,102080.0,102070.0,0.64399477]
[1738020071925,0.5383819,102080.0,102070.0,0.64399477]
[1738020072773,0.04554894,102080.0,102070.0,0.88235661]
[1738020073332,0.04554894,102080.0,102070.0,0.77159477]
[1738020073868,0.04554894,102080.0,102070.0,0.88235661]
[1738020074064,0.5383819,102080.0,102070.0,0.88235661]
[1738020074570,0.5383819,102080.0,102070.0,0.77159477]
[1738020074773,0.55374605,102080.0,102070.0,0.77159477]
[1738020075314,0.55374605,102080.0,102070.0,0.88435661]
[1738020075548,0.55374605,102080.0,102070.0,1.0147039]
[1738020075878,0.50824605,102080.0,102070.0,1.1647039]
[1738020076085,0.01541309,102080.0,102070.0,1.1647039]
[1738020076714,0.01541309,102080.0,102070.0,1.1657039]
[1738020077613,0.01541309,102080.0,102070.0,1.1857039]
[1738020078198,4.894e-05,102080.0,102070.0,1.1857039]
[1738020078579,0.335,102100.0,102080.0,0.285343]
[1738020078738,0.82783296,102100.0,102090.0,0.1479083]
[1738020078983,0.63833296,102100.0,102090.0,0.76676885]
[1738020079197,0.49283296,102100.0,102090.0,1.16453684]
[1738020079833,0.49383296,102100.0,102090.0,1.16453684]
[1738020080171,0.49383296,102100.0,102090.0,0.92342771]
[1738020080383,0.49483296,102100.0,102090.0,0.69402771]
[1738020080792,0.49283296,102100.0,102090.0,0.69402771]
[1738020081020,0.59018025,102100.0,102090.0,0.69402771]
[1738020081222,0.83544154,102100.0,102090.0,0.50509871]
[1738020081464,0.68752754,102100.0,102090.0,0.64502771]
[1738020081640,0.59018025,102100.0,102090.0,0.64802771]
[1738020081852,0.49283296,102100.0,102090.0,0.64802771]
[1738020082047,0.49283296,102100.0,102090.0,0.75878955]
[1738020082266,0.49283296,102100.0,102090.0,0.64802771]
[1738020082410,0.50819531,102100.0,102090.0,0.64802771]
[1738020082620,0.50819531,102100.0,102090.0,0.64902771]
[1738020083764,0.49283296,102100.0,102090.0,0.64902771]
[1738020084227,0.5904774,102100.0,102090.0,0.64902771]
[1738020084387,0.5904774,102100.0,102090.0,0.50209871]
[1738020084581,0.5904774,102100.0,102090.0,0.64902771]
[1738020084805,0.49313011,102100.0,102090.0,0.64902771]
[1738020085008,0.49313011,102100.0,102090.0,0.77052771]
[1738020085552,0.50849263,102100.0,102090.0,0.77052771]
[1738020085704,0.50849263,102100.0,102090.0,0.88128955]
[1738020085889,0.50849263,102100.0,102090.0,0.75386104]
[1738020086497,0.50849263,102100.0,102090.0,0.86462288]
[1738020087570,0.01565967,102100.0,102090.0,1.01462288]